[Event "Early-Titled-Tuesday-Blitz-September-12-2023"]
[Site "Chess.com"]
[Date "2023.09.12"]
[Round "11"]
[White "Vesper2018"]
[Black "TregubovP"]
[Result "0-1"]
[WhiteElo "2603"]
[BlackElo "2655"]
[TimeControl "180+1"]
[EndTime "10:06:13 PDT"]
[Termination "TregubovP won on time"]

1. e4 {[%clk 0:03:00.9]} 1... c5 {[%clk 0:02:59.1]} 2. Nc3 {[%clk 0:03:00.5]}
2... e6 {[%clk 0:02:59.3]} 3. Nge2 {[%clk 0:02:59]} 3... Nc6 {[%clk 0:02:54.8]}
4. d4 {[%clk 0:02:58.9]} 4... cxd4 {[%clk 0:02:54.8]} 5. Nxd4 {[%clk 0:02:59.6]}
5... Nf6 {[%clk 0:02:54.2]} 6. Ndb5 {[%clk 0:02:57]} 6... Bb4 {[%clk 0:02:53.9]}
7. a3 {[%clk 0:02:55.9]} 7... Bxc3+ {[%clk 0:02:54.4]} 8. Nxc3 {[%clk
0:02:56.2]} 8... d5 {[%clk 0:02:55]} 9. exd5 {[%clk 0:02:56.5]} 9... exd5 {[%clk
0:02:55.1]} 10. Bd3 {[%clk 0:02:56.1]} 10... O-O {[%clk 0:02:55.7]} 11. O-O
{[%clk 0:02:55.7]} 11... d4 {[%clk 0:02:56.2]} 12. Ne2 {[%clk 0:02:55.7]} 12...
Bg4 {[%clk 0:02:56.4]} 13. f3 {[%clk 0:02:53.5]} 13... Bh5 {[%clk 0:02:56.4]}
14. Bg5 {[%clk 0:02:52.6]} 14... Bg6 {[%clk 0:02:54.8]} 15. Nf4 {[%clk
0:02:46.9]} 15... Qd6 {[%clk 0:02:49.5]} 16. Qd2 {[%clk 0:02:36.8]} 16... Bxd3
{[%clk 0:02:23.6]} 17. Nxd3 {[%clk 0:02:31.2]} 17... Nd5 {[%clk 0:02:23.1]} 18.
Rfe1 {[%clk 0:02:23.6]} 18... Rfe8 {[%clk 0:02:22.9]} 19. Nf2 {[%clk 0:02:02.7]}
19... h6 {[%clk 0:02:18.8]} 20. Ne4 {[%clk 0:02:02.8]} 20... Qc7 {[%clk
0:02:00]} 21. Bh4 {[%clk 0:01:51.5]} 21... Qb6 {[%clk 0:01:40.1]} 22. b4 {[%clk
0:01:49.9]} 22... a5 {[%clk 0:01:30.4]} 23. bxa5 {[%clk 0:01:29.4]} 23... Qxa5
{[%clk 0:01:12.8]} 24. Qd3 {[%clk 0:01:20]} 24... f5 {[%clk 0:00:45.7]} 25. Nd6
{[%clk 0:01:00.9]} 25... Rxe1+ {[%clk 0:00:45.3]} 26. Bxe1 {[%clk 0:01:00.5]}
26... Qc5 {[%clk 0:00:43.9]} 27. Nxb7 {[%clk 0:00:44.1]} 27... Qe7 {[%clk
0:00:19.7]} 28. Qb3 {[%clk 0:00:37.4]} 28... Qe5 {[%clk 0:00:14.4]} 29. Bf2
{[%clk 0:00:22.7]} 29... Kh7 {[%clk 0:00:12.6]} 30. Nc5 {[%clk 0:00:19.6]} 30...
Rb8 {[%clk 0:00:09.9]} 31. Qc4 {[%clk 0:00:17]} 31... Ne3 {[%clk 0:00:10]} 32.
Bxe3 {[%clk 0:00:14.9]} 32... Qxe3+ {[%clk 0:00:10.2]} 33. Kh1 {[%clk
0:00:15.4]} 33... Ne5 {[%clk 0:00:09.9]} 34. Qf1 {[%clk 0:00:08.9]} 34... Rc8
{[%clk 0:00:08.8]} 35. Nd3 {[%clk 0:00:08.2]} 35... Rxc2 {[%clk 0:00:08.2]} 36.
Nxe5 {[%clk 0:00:08.4]} 36... Qxe5 {[%clk 0:00:08.3]} 37. Rd1 {[%clk 0:00:08.6]}
37... Qe3 {[%clk 0:00:07.8]} 38. h3 {[%clk 0:00:06.8]} 38... Re2 {[%clk
0:00:07.7]} 39. a4 {[%clk 0:00:06]} 39... d3 {[%clk 0:00:08.1]} 40. a5 {[%clk
0:00:05.7]} 40... d2 {[%clk 0:00:08.6]} 41. Kh2 {[%clk 0:00:02.1]} 41... Re1
{[%clk 0:00:08.6]} 0-1

[Event "Early-Titled-Tuesday-Blitz-September-12-2023"]
[Site "Chess.com"]
[Date "2023.09.12"]
[Round "11"]
[White "Gyulamiryan-koryun"]
[Black "NowInChess"]
[Result "0-1"]
[WhiteElo "2014"]
[BlackElo "2234"]
[TimeControl "180+1"]
[EndTime "10:06:13 PDT"]
[Termination "NowInChess won by checkmate"]

1. e4 {[%clk 0:02:58.3]} 1... e6 {[%clk 0:02:59.9]} 2. d4 {[%clk 0:02:55.9]}
2... d5 {[%clk 0:03:00.4]} 3. Nd2 {[%clk 0:02:56.1]} 3... h6 {[%clk 0:02:59.2]}
4. f4 {[%clk 0:02:49.7]} 4... dxe4 {[%clk 0:02:52.8]} 5. Nxe4 {[%clk 0:02:48.8]}
5... Nf6 {[%clk 0:02:52.7]} 6. Bd3 {[%clk 0:02:45.2]} 6... Nbd7 {[%clk
0:02:42.3]} 7. Nf3 {[%clk 0:02:43.9]} 7... b6 {[%clk 0:02:41]} 8. O-O {[%clk
0:02:43.5]} 8... Bb7 {[%clk 0:02:40.5]} 9. Re1 {[%clk 0:02:41.9]} 9... Nxe4
{[%clk 0:02:37.2]} 10. Bxe4 {[%clk 0:02:41.2]} 10... Bxe4 {[%clk 0:02:38.1]} 11.
Rxe4 {[%clk 0:02:40.9]} 11... Nf6 {[%clk 0:02:39]} 12. Re1 {[%clk 0:02:36.1]}
12... c5 {[%clk 0:02:35.4]} 13. c3 {[%clk 0:02:30.7]} 13... Bd6 {[%clk
0:02:16.2]} 14. Qa4+ {[%clk 0:02:25.6]} 14... Qd7 {[%clk 0:02:10.3]} 15. Qxd7+
{[%clk 0:02:24.2]} 15... Kxd7 {[%clk 0:02:04.4]} 16. Ne5+ {[%clk 0:02:22.7]}
16... Bxe5 {[%clk 0:02:00.3]} 17. dxe5 {[%clk 0:02:19.1]} 17... Nd5 {[%clk
0:01:46.7]} 18. Rd1 {[%clk 0:02:10.3]} 18... Kc6 {[%clk 0:01:45.6]} 19. a3
{[%clk 0:02:01.5]} 19... c4 {[%clk 0:01:40.9]} 20. Rd4 {[%clk 0:01:56.1]} 20...
b5 {[%clk 0:01:35.3]} 21. Kf2 {[%clk 0:01:44.1]} 21... Rhd8 {[%clk 0:01:28.9]}
22. Be3 {[%clk 0:01:41.3]} 22... Nxe3 {[%clk 0:00:55.5]} 23. Kxe3 {[%clk
0:01:40.2]} 23... Rxd4 {[%clk 0:00:54.8]} 24. cxd4 {[%clk 0:01:35.4]} 24... Kd5
{[%clk 0:00:52.5]} 25. Rc1 {[%clk 0:01:30.3]} 25... a5 {[%clk 0:00:50.6]} 26. b3
{[%clk 0:01:23.7]} 26... Rc8 {[%clk 0:00:40.6]} 27. b4 {[%clk 0:01:17]} 27...
axb4 {[%clk 0:00:39.1]} 28. axb4 {[%clk 0:01:16.9]} 28... Ra8 {[%clk 0:00:39.6]}
29. Rd1 {[%clk 0:00:55.1]} 29... Ra3+ {[%clk 0:00:37.2]} 30. Ke2 {[%clk
0:00:49.6]} 30... Ra2+ {[%clk 0:00:35.8]} 31. Ke3 {[%clk 0:00:47.5]} 31... Rb2
{[%clk 0:00:28.4]} 32. g4 {[%clk 0:00:44.5]} 32... Rb3+ {[%clk 0:00:27.1]} 33.
Ke2 {[%clk 0:00:41.6]} 33... Rxb4 {[%clk 0:00:26.9]} 34. h4 {[%clk 0:00:41.1]}
34... c3 {[%clk 0:00:23.8]} 35. Kd3 {[%clk 0:00:40.7]} 35... Rxd4+ {[%clk
0:00:23.2]} 36. Kc2 {[%clk 0:00:39.9]} 36... Rxd1 {[%clk 0:00:22.9]} 37. Kxd1
{[%clk 0:00:40.1]} 37... Ke4 {[%clk 0:00:21.6]} 38. Kc2 {[%clk 0:00:38.4]} 38...
b4 {[%clk 0:00:21.5]} 39. g5 {[%clk 0:00:32.6]} 39... Kxf4 {[%clk 0:00:18.7]}
40. gxh6 {[%clk 0:00:32.3]} 40... gxh6 {[%clk 0:00:19.2]} 41. h5 {[%clk
0:00:30.9]} 41... Kxe5 {[%clk 0:00:19.3]} 42. Kb3 {[%clk 0:00:30.4]} 42... Kf5
{[%clk 0:00:20]} 43. Kc2 {[%clk 0:00:30.1]} 43... Kg5 {[%clk 0:00:19.9]} 44. Kb3
{[%clk 0:00:30.3]} 44... Kxh5 {[%clk 0:00:20.2]} 45. Kc2 {[%clk 0:00:31.1]}
45... Kg4 {[%clk 0:00:19.9]} 46. Kb3 {[%clk 0:00:32]} 46... h5 {[%clk
0:00:20.4]} 47. Kc2 {[%clk 0:00:32.9]} 47... h4 {[%clk 0:00:21.3]} 48. Kb3
{[%clk 0:00:33.6]} 48... h3 {[%clk 0:00:22.2]} 49. Kc2 {[%clk 0:00:34.2]} 49...
h2 {[%clk 0:00:23.1]} 50. Kb3 {[%clk 0:00:34.9]} 50... h1=Q {[%clk 0:00:23.6]}
51. Kc2 {[%clk 0:00:35.8]} 51... Qg2+ {[%clk 0:00:23.8]} 52. Kb3 {[%clk
0:00:36.7]} 52... Qb2+ {[%clk 0:00:24.1]} 53. Kc4 {[%clk 0:00:37.4]} 53... c2
{[%clk 0:00:24.2]} 54. Kd3 {[%clk 0:00:38.3]} 54... c1=Q {[%clk 0:00:21.6]} 55.
Ke4 {[%clk 0:00:39.2]} 55... Qf4+ {[%clk 0:00:20.2]} 56. Kd3 {[%clk 0:00:40.1]}
56... Qc3+ {[%clk 0:00:19.8]} 57. Ke2 {[%clk 0:00:36.2]} 57... Qfe3+ {[%clk
0:00:19.8]} 58. Kf1 {[%clk 0:00:34.4]} 58... Qce1+ {[%clk 0:00:19.6]} 59. Kg2
{[%clk 0:00:33.9]} 59... Q1g1# {[%clk 0:00:20.5]} 0-1

[Event "Early-Titled-Tuesday-Blitz-September-12-2023"]
[Site "Chess.com"]
[Date "2023.09.12"]
[Round "11"]
[White "VOneChess"]
[Black "nitpicker"]
[Result "1-0"]
[WhiteElo "2217"]
[BlackElo "2239"]
[TimeControl "180+1"]
[EndTime "10:06:15 PDT"]
[Termination "VOneChess won by resignation"]

1. e4 {[%clk 0:02:17.4]} 1... c5 {[%clk 0:02:58.8]} 2. Nf3 {[%clk 0:02:17.2]}
2... d6 {[%clk 0:02:57.8]} 3. d4 {[%clk 0:02:17.8]} 3... cxd4 {[%clk 0:02:58]}
4. Nxd4 {[%clk 0:02:18.5]} 4... Nf6 {[%clk 0:02:58]} 5. Nc3 {[%clk 0:02:19.3]}
5... Nc6 {[%clk 0:02:58.1]} 6. Bg5 {[%clk 0:02:19.3]} 6... Qb6 {[%clk
0:02:58.1]} 7. Nb3 {[%clk 0:02:13.9]} 7... e6 {[%clk 0:02:58.1]} 8. Qd2 {[%clk
0:02:13.9]} 8... a6 {[%clk 0:02:54.3]} 9. O-O-O {[%clk 0:02:14.2]} 9... Be7
{[%clk 0:02:51.6]} 10. f4 {[%clk 0:02:11]} 10... Qc7 {[%clk 0:02:48.2]} 11. Be2
{[%clk 0:02:03.3]} 11... O-O {[%clk 0:02:47.1]} 12. Bf3 {[%clk 0:02:03.6]} 12...
Rd8 {[%clk 0:02:45.9]} 13. g4 {[%clk 0:02:03]} 13... b5 {[%clk 0:02:41.7]} 14.
Bxf6 {[%clk 0:02:02.3]} 14... Bxf6 {[%clk 0:02:39]} 15. g5 {[%clk 0:02:01.5]}
15... Be7 {[%clk 0:02:36.6]} 16. Nd4 {[%clk 0:01:56.6]} 16... Bb7 {[%clk
0:02:32.8]} 17. h4 {[%clk 0:01:53.3]} 17... Rac8 {[%clk 0:02:31.2]} 18. Kb1
{[%clk 0:01:51.2]} 18... b4 {[%clk 0:02:31.2]} 19. Nce2 {[%clk 0:01:50.7]} 19...
Na5 {[%clk 0:02:11.5]} 20. b3 {[%clk 0:01:31.3]} 20... Bf8 {[%clk 0:02:09.9]}
21. h5 {[%clk 0:01:30.8]} 21... e5 {[%clk 0:02:06.2]} 22. Nf5 {[%clk 0:01:27.7]}
22... d5 {[%clk 0:01:50.4]} 23. exd5 {[%clk 0:01:20.6]} 23... Qd7 {[%clk
0:01:32.9]} 24. Be4 {[%clk 0:01:00.2]} 24... Rc5 {[%clk 0:01:16]} 25. g6 {[%clk
0:00:27]} 25... Bxd5 {[%clk 0:01:11.8]} 26. gxf7+ {[%clk 0:00:22.8]} 26... Kh8
{[%clk 0:01:11.1]} 27. Bxd5 {[%clk 0:00:14.3]} 27... Rxd5 {[%clk 0:01:10.5]} 28.
Qxd5 {[%clk 0:00:15]} 28... Qxd5 {[%clk 0:01:09.6]} 29. Rxd5 {[%clk 0:00:15.9]}
29... Rxd5 {[%clk 0:01:09.8]} 30. fxe5 {[%clk 0:00:12.6]} 30... Rxe5 {[%clk
0:01:08.9]} 31. Ned4 {[%clk 0:00:12.1]} 31... Nb7 {[%clk 0:00:57.5]} 32. Rg1
{[%clk 0:00:07.8]} 32... Nd6 {[%clk 0:00:44.1]} 33. Nxd6 {[%clk 0:00:06.7]}
33... Bxd6 {[%clk 0:00:44.1]} 34. Rf1 {[%clk 0:00:06.8]} 34... Bf8 {[%clk
0:00:43.3]} 35. Kb2 {[%clk 0:00:05.6]} 35... g6 {[%clk 0:00:43.7]} 36. h6 {[%clk
0:00:05.3]} 36... g5 {[%clk 0:00:38.1]} 37. Rf6 {[%clk 0:00:04.6]} 37... g4
{[%clk 0:00:35.2]} 38. Rxa6 {[%clk 0:00:04.5]} 38... Re7 {[%clk 0:00:31.6]} 39.
Ra8 {[%clk 0:00:02.6]} 39... Rxf7 {[%clk 0:00:31.2]} 40. Ne6 {[%clk 0:00:03.3]}
40... g3 {[%clk 0:00:30.9]} 41. Nxf8 {[%clk 0:00:03.5]} 41... Ra7 {[%clk
0:00:22.2]} 42. Rxa7 {[%clk 0:00:02.8]} 42... g2 {[%clk 0:00:13.1]} 43. Rxh7+
{[%clk 0:00:03.4]} 1-0

[Event "Early-Titled-Tuesday-Blitz-September-12-2023"]
[Site "Chess.com"]
[Date "2023.09.12"]
[Round "11"]
[White "Bilan_Danila"]
[Black "Dr_crypt"]
[Result "0-1"]
[WhiteElo "2557"]
[BlackElo "2430"]
[TimeControl "180+1"]
[EndTime "10:06:18 PDT"]
[Termination "Dr_crypt won by resignation"]

1. d4 {[%clk 0:02:01.8]} 1... Nf6 {[%clk 0:02:23.6]} 2. Nf3 {[%clk 0:02:01.5]}
2... d5 {[%clk 0:02:23.2]} 3. c4 {[%clk 0:02:01.4]} 3... e6 {[%clk 0:02:23]} 4.
Nc3 {[%clk 0:02:01.6]} 4... a6 {[%clk 0:02:19.6]} 5. cxd5 {[%clk 0:02:01.6]}
5... exd5 {[%clk 0:02:17]} 6. Bg5 {[%clk 0:02:00.6]} 6... Be7 {[%clk 0:02:15.4]}
7. e3 {[%clk 0:02:00.6]} 7... O-O {[%clk 0:02:14.7]} 8. Bd3 {[%clk 0:02:01]}
8... Be6 {[%clk 0:02:14.4]} 9. O-O {[%clk 0:02:00.3]} 9... Nbd7 {[%clk
0:02:14.2]} 10. Rc1 {[%clk 0:01:59.9]} 10... c6 {[%clk 0:02:11.8]} 11. h3 {[%clk
0:01:52.6]} 11... Re8 {[%clk 0:02:09.4]} 12. a3 {[%clk 0:01:49.8]} 12... a5
{[%clk 0:02:06.5]} 13. Na4 {[%clk 0:01:42.9]} 13... Ne4 {[%clk 0:02:00.8]} 14.
Bf4 {[%clk 0:01:37.6]} 14... Bd6 {[%clk 0:01:38]} 15. Bxe4 {[%clk 0:01:21.6]}
15... Bxf4 {[%clk 0:01:37.4]} 16. Bxh7+ {[%clk 0:01:17.7]} 16... Kxh7 {[%clk
0:01:38]} 17. exf4 {[%clk 0:01:18]} 17... f6 {[%clk 0:01:35.7]} 18. Re1 {[%clk
0:01:04.7]} 18... Bf5 {[%clk 0:01:32.8]} 19. Nh4 {[%clk 0:00:53.9]} 19... Be6
{[%clk 0:01:13.9]} 20. Qh5+ {[%clk 0:00:41.2]} 20... Kg8 {[%clk 0:01:13]} 21. f5
{[%clk 0:00:34.5]} 21... Bf7 {[%clk 0:01:10.8]} 22. Ng6 {[%clk 0:00:32.4]} 22...
Bxg6 {[%clk 0:01:10.3]} 23. fxg6 {[%clk 0:00:33.3]} 23... Nf8 {[%clk 0:01:10.3]}
24. Nc5 {[%clk 0:00:28]} 24... Rb8 {[%clk 0:01:01.7]} 25. Ne6 {[%clk 0:00:08.1]}
25... Rxe6 {[%clk 0:00:35.8]} 26. Rxe6 {[%clk 0:00:03]} 26... Nxe6 {[%clk
0:00:25]} 27. Qh7+ {[%clk 0:00:03.4]} 27... Kf8 {[%clk 0:00:25.1]} 28. Re1
{[%clk 0:00:03.9]} 28... Ke7 {[%clk 0:00:14]} 29. Qxg7+ {[%clk 0:00:02.6]} 29...
Kd6 {[%clk 0:00:13.9]} 30. Qf7 {[%clk 0:00:02.2]} 30... Qd7 {[%clk 0:00:13.3]}
31. Qxf6 {[%clk 0:00:02]} 31... Qe7 {[%clk 0:00:09.9]} 32. Qe5+ {[%clk
0:00:01.9]} 32... Kd7 {[%clk 0:00:09.5]} 33. f4 {[%clk 0:00:02.8]} 33... Qd6
{[%clk 0:00:04.2]} 34. f5 {[%clk 0:00:03.2]} 34... Qxe5 {[%clk 0:00:04.2]} 35.
dxe5 {[%clk 0:00:03.8]} 35... Nd4 {[%clk 0:00:04.6]} 36. f6 {[%clk 0:00:03.5]}
36... Ke6 {[%clk 0:00:03.8]} 37. g7 {[%clk 0:00:03]} 37... Kf7 {[%clk
0:00:03.3]} 38. g4 {[%clk 0:00:03.4]} 38... Re8 {[%clk 0:00:03.9]} 39. g5 {[%clk
0:00:03.6]} 39... Nf3+ {[%clk 0:00:04.3]} 40. Kf2 {[%clk 0:00:03.8]} 40... Nxe1
{[%clk 0:00:04.9]} 41. Kxe1 {[%clk 0:00:04.7]} 41... Rxe5+ {[%clk 0:00:05.7]}
42. Kf2 {[%clk 0:00:05.4]} 42... Rxg5 {[%clk 0:00:06.3]} 0-1

[Event "Early-Titled-Tuesday-Blitz-September-12-2023"]
[Site "Chess.com"]
[Date "2023.09.12"]
[Round "11"]
[White "malakismayil"]
[Black "itsdsyr"]
[Result "1-0"]
[WhiteElo "2517"]
[BlackElo "2241"]
[TimeControl "180+1"]
[EndTime "10:06:20 PDT"]
[Termination "malakismayil won on time"]

1. e4 {[%clk 0:03:00.9]} 1... e5 {[%clk 0:02:55.5]} 2. Nf3 {[%clk 0:02:57.6]}
2... Nc6 {[%clk 0:02:55.4]} 3. Bc4 {[%clk 0:02:56.4]} 3... Bc5 {[%clk
0:02:55.2]} 4. O-O {[%clk 0:02:53.3]} 4... Nf6 {[%clk 0:02:54.8]} 5. Nc3 {[%clk
0:02:53.9]} 5... d6 {[%clk 0:02:54.5]} 6. d3 {[%clk 0:02:54.6]} 6... O-O {[%clk
0:02:54.1]} 7. h3 {[%clk 0:02:54.4]} 7... h6 {[%clk 0:02:53.7]} 8. Be3 {[%clk
0:02:54.6]} 8... Re8 {[%clk 0:02:40.1]} 9. Qd2 {[%clk 0:02:52]} 9... Bxe3 {[%clk
0:02:37.4]} 10. fxe3 {[%clk 0:02:51.8]} 10... Be6 {[%clk 0:02:38.3]} 11. Bb3
{[%clk 0:02:51.9]} 11... Bxb3 {[%clk 0:02:36.4]} 12. axb3 {[%clk 0:02:52.8]}
12... d5 {[%clk 0:02:31.8]} 13. exd5 {[%clk 0:02:53.7]} 13... Nxd5 {[%clk
0:02:32.6]} 14. e4 {[%clk 0:02:53.9]} 14... Nf4 {[%clk 0:02:23.5]} 15. Kh2
{[%clk 0:02:40.4]} 15... Ng6 {[%clk 0:02:17]} 16. Nd5 {[%clk 0:02:35.3]} 16...
Nce7 {[%clk 0:02:16.7]} 17. Ne3 {[%clk 0:02:33]} 17... c6 {[%clk 0:02:00.6]} 18.
Qf2 {[%clk 0:02:31.5]} 18... Qd6 {[%clk 0:01:46]} 19. Qg3 {[%clk 0:02:12.4]}
19... Qe6 {[%clk 0:01:41.1]} 20. Rf2 {[%clk 0:01:56.3]} 20... a6 {[%clk
0:01:34.4]} 21. Raf1 {[%clk 0:01:54.8]} 21... Rf8 {[%clk 0:01:33.6]} 22. Nh4
{[%clk 0:01:19.1]} 22... Nxh4 {[%clk 0:01:24.9]} 23. Qxh4 {[%clk 0:01:20]} 23...
a5 {[%clk 0:00:55.4]} 24. Qg3 {[%clk 0:01:11.1]} 24... a4 {[%clk 0:00:52.2]} 25.
bxa4 {[%clk 0:01:05.1]} 25... Kh8 {[%clk 0:00:47]} 26. b3 {[%clk 0:01:03.7]}
26... f6 {[%clk 0:00:44.5]} 27. Ng4 {[%clk 0:00:46.4]} 27... Kh7 {[%clk
0:00:38]} 28. h4 {[%clk 0:00:37.8]} 28... Ng6 {[%clk 0:00:32.3]} 29. Ne3 {[%clk
0:00:35.3]} 29... Nf4 {[%clk 0:00:18.3]} 30. Qf3 {[%clk 0:00:33.5]} 30... g6
{[%clk 0:00:05]} 31. g3 {[%clk 0:00:29.8]} 31... Nh5 {[%clk 0:00:05.6]} 32. Ng2
{[%clk 0:00:19.7]} 32... Rf7 {[%clk 0:00:03.8]} 33. g4 {[%clk 0:00:19.9]} 33...
Ng7 {[%clk 0:00:04.1]} 34. Ne3 {[%clk 0:00:17.2]} 34... Raf8 {[%clk 0:00:04.1]}
35. Qg3 {[%clk 0:00:16.8]} 35... Ne8 {[%clk 0:00:02.4]} 36. Rg1 {[%clk
0:00:12.6]} 36... Nd6 {[%clk 0:00:02.1]} 37. Rfg2 {[%clk 0:00:12.8]} 37... Ne8
{[%clk 0:00:01.8]} 38. Nf5 {[%clk 0:00:11.5]} 1-0

[Event "Early-Titled-Tuesday-Blitz-September-12-2023"]
[Site "Chess.com"]
[Date "2023.09.12"]
[Round "11"]
[White "abhidabhi"]
[Black "MokshAD1603"]
[Result "1/2-1/2"]
[WhiteElo "2858"]
[BlackElo "2607"]
[TimeControl "180+1"]
[EndTime "10:06:22 PDT"]
[Termination "Game drawn by repetition"]

1. Nf3 {[%clk 0:03:00.9]} 1... d5 {[%clk 0:02:53.2]} 2. c4 {[%clk 0:03:01.3]}
2... d4 {[%clk 0:02:50.4]} 3. b4 {[%clk 0:03:01.4]} 3... c5 {[%clk 0:02:49]} 4.
bxc5 {[%clk 0:03:00]} 4... Nf6 {[%clk 0:02:48.3]} 5. g3 {[%clk 0:02:59.6]} 5...
Nc6 {[%clk 0:02:48.2]} 6. Bg2 {[%clk 0:02:59.5]} 6... e5 {[%clk 0:02:48.8]} 7.
d3 {[%clk 0:02:59.9]} 7... Bxc5 {[%clk 0:02:49]} 8. O-O {[%clk 0:02:59.4]} 8...
O-O {[%clk 0:02:49.1]} 9. Nfd2 {[%clk 0:02:59.2]} 9... h6 {[%clk 0:02:44.4]} 10.
Nb3 {[%clk 0:02:59.1]} 10... Be7 {[%clk 0:02:44.3]} 11. Ba3 {[%clk 0:02:59.7]}
11... Re8 {[%clk 0:02:41.1]} 12. Bxe7 {[%clk 0:02:56.8]} 12... Qxe7 {[%clk
0:02:42]} 13. a4 {[%clk 0:02:56.2]} 13... Bf5 {[%clk 0:02:39.2]} 14. Na3 {[%clk
0:02:55.2]} 14... e4 {[%clk 0:02:28]} 15. Nb5 {[%clk 0:02:54.7]} 15... Rad8
{[%clk 0:02:25.4]} 16. c5 {[%clk 0:02:52.5]} 16... exd3 {[%clk 0:02:09]} 17.
exd3 {[%clk 0:02:52.2]} 17... Nb4 {[%clk 0:02:09.6]} 18. Nd6 {[%clk 0:02:48.4]}
18... Rxd6 {[%clk 0:02:10.1]} 19. cxd6 {[%clk 0:02:48.3]} 19... Qxd6 {[%clk
0:02:11]} 20. Qd2 {[%clk 0:02:29]} 20... Nxd3 {[%clk 0:02:09.8]} 21. a5 {[%clk
0:02:16.5]} 21... b6 {[%clk 0:02:01.2]} 22. Ra4 {[%clk 0:02:14.2]} 22... bxa5
{[%clk 0:01:43.2]} 23. Rxd4 {[%clk 0:02:14.1]} 23... Qa3 {[%clk 0:01:42.9]} 24.
Nxa5 {[%clk 0:02:08.3]} 24... Ne5 {[%clk 0:01:38.2]} 25. Nc4 {[%clk 0:01:47.4]}
25... Nf3+ {[%clk 0:01:36.2]} 26. Bxf3 {[%clk 0:01:47]} 26... Qxf3 {[%clk
0:01:37.1]} 27. Rf4 {[%clk 0:01:45.9]} 27... Qh5 {[%clk 0:01:25.8]} 28. Qa5
{[%clk 0:01:39.9]} 28... Bd3 {[%clk 0:01:19.8]} 29. Rc1 {[%clk 0:01:34.1]} 29...
Qe2 {[%clk 0:01:01.6]} 30. Qxa7 {[%clk 0:01:12.3]} 30... Be4 {[%clk 0:00:51.3]}
31. Qe3 {[%clk 0:01:06.3]} 31... Qa2 {[%clk 0:00:42.2]} 32. Nd6 {[%clk
0:01:05.2]} 32... Nd5 {[%clk 0:00:35.5]} 33. Rxe4 {[%clk 0:00:48.9]} 33... Nxe3
{[%clk 0:00:35.6]} 34. Rxe8+ {[%clk 0:00:48.9]} 34... Kh7 {[%clk 0:00:36.5]} 35.
Rxe3 {[%clk 0:00:47.8]} 35... Qd2 {[%clk 0:00:34.5]} 36. Rc7 {[%clk 0:00:46.2]}
36... Qxd6 {[%clk 0:00:30.9]} 37. Rxf7 {[%clk 0:00:45.4]} 37... Qd1+ {[%clk
0:00:30.8]} 38. Kg2 {[%clk 0:00:44.8]} 38... Qd5+ {[%clk 0:00:31.7]} 39. Rff3
{[%clk 0:00:44.9]} 39... g5 {[%clk 0:00:31.3]} 40. g4 {[%clk 0:00:40]} 40... h5
{[%clk 0:00:29.2]} 41. h3 {[%clk 0:00:40.3]} 41... h4 {[%clk 0:00:28.7]} 42. Rd3
{[%clk 0:00:37.2]} 42... Qe4 {[%clk 0:00:28.5]} 43. Re3 {[%clk 0:00:37.2]} 43...
Qd5 {[%clk 0:00:28.6]} 44. Re7+ {[%clk 0:00:37.5]} 44... Kg6 {[%clk 0:00:28.2]}
45. Rf7 {[%clk 0:00:35.8]} 45... Qe4 {[%clk 0:00:26]} 46. Kf1 {[%clk 0:00:31.5]}
46... Qb1+ {[%clk 0:00:25.6]} 47. Kg2 {[%clk 0:00:30.8]} 47... Qe4 {[%clk
0:00:25.9]} 48. Rf6+ {[%clk 0:00:26.2]} 48... Kg7 {[%clk 0:00:26.1]} 49. Rf5
{[%clk 0:00:26.7]} 49... Kg6 {[%clk 0:00:26.1]} 50. Rf7 {[%clk 0:00:27]} 50...
Qd5 {[%clk 0:00:23.1]} 51. Kh2 {[%clk 0:00:19.9]} 51... Qe5+ {[%clk 0:00:23.1]}
52. Kg1 {[%clk 0:00:19.4]} 52... Qe1+ {[%clk 0:00:23.1]} 53. Kg2 {[%clk
0:00:19.7]} 53... Qe4 {[%clk 0:00:23.5]} 1/2-1/2